fUSD/lending_fUSD_20241224
["ID","MTS","AMOUNT","RATE_DAILY","PERIOD"]
[346553498,1735080649282,-500.0,0.00012999,2]
[346553499,1735080649292,-2038.04,0.00012999,2]
[346553500,1735080649301,-672.14,0.00012999,2]
[346553501,1735080649310,-500.0,0.00012999,2]
[346553502,1735080649319,-500.0,0.00012999,2]
[346553503,1735080649329,-537.48,0.00012999,2]
[346553504,1735080649338,-500.0,0.00012999,2]
[346553505,1735080649348,-500.0,0.00012999,2]
[346553506,1735080649358,-1549.32,0.00012999,2]
[346553507,1735080649368,-929.84,0.00012999,2]
[346553508,1735080649377,-867.08,0.00012999,2]
[346553509,1735080649387,-500.0,0.00012999,2]
[346553510,1735080649397,-2244.0,0.00012999,2]
[346553511,1735080649406,-500.0,0.00012999,2]
[346553512,1735080649415,-500.0,0.00012999,2]
[346553513,1735080649425,-1330.91,0.00012999,2]
[346553514,1735080649435,-1854.28,0.00012999,2]
[346553515,1735080649443,-500.0,0.00012999,2]
[346553516,1735080649452,-500.0,0.00012999,2]
[346553517,1735080649461,-500.0,0.00012999,2]
[346553518,1735080649471,-500.0,0.00012999,2]
[346553519,1735080649480,-1727.36,0.00012999,2]
[346553520,1735080649489,-895.44,0.00012999,2]
[346553521,1735080649498,-500.0,0.00012999,2]
[346553522,1735080649507,-746.03,0.00012999,2]
[346553523,1735080649516,-500.0,0.00012999,2]
[346553524,1735080649525,-151.0,0.00012999,2]
[346553525,1735080649534,-1268.78,0.00012999,2]
[346553526,1735080649543,-1268.78,0.00012999,2]
[346553527,1735080649551,-1268.78,0.00012999,2]
[346553528,1735080649561,-1268.78,0.00012999,2]
[346553529,1735080649570,-500.0,0.00012999,2]
[346553530,1735080649578,-1268.78,0.00012999,2]
[346553531,1735080649587,-1268.78,0.00012999,2]
[346553532,1735080649596,-1268.78,0.00012999,2]
[346553533,1735080649606,-1268.78,0.00012999,2]
[346553534,1735080649615,-1268.78,0.00012999,2]
[346553535,1735080649624,-1268.78,0.00012999,2]
[346553536,1735080649633,-1268.78,0.00012999,2]
[346553537,1735080649642,-1268.78,0.00012999,2]
[346553538,1735080649651,-1268.78,0.00012999,2]
[346553539,1735080649660,-1268.78,0.00012999,2]
[346553540,1735080649670,-1268.78,0.00012999,2]
[346553541,1735080649679,-1268.78,0.00012999,2]
[346553542,1735080649689,-1268.78,0.00012999,2]
[346553543,1735080649698,-1268.78,0.00012999,2]
[346553544,1735080649707,-500.0,0.00012999,2]
[346553545,1735080649716,-1268.78,0.00012999,2]
[346553546,1735080649725,-554.4,0.00012999,2]
[346553547,1735080649734,-1268.78,0.00012999,2]
[346553548,1735080649743,-1268.78,0.00012999,2]
[346553549,1735080649753,-1268.78,0.00012999,2]
[346553550,1735080649763,-1268.78,0.00012999,2]
[346553551,1735080649773,-1268.93628976,0.00012999,2]
[346553552,1735080649782,-929.76,0.00012999,2]
[346553553,1735080649791,-500.0,0.00012999,2]
[346553554,1735080649801,-215.69644899,0.00012999,2]
[346553555,1735080649810,-591.05,0.00012999,2]
[346553556,1735080649819,-151.0,0.00012999,2]
[346553557,1735080649829,-151.0,0.00012999,2]
[346553558,1735080649838,-1906.69,0.00012999,2]
[346553559,1735080649847,-500.0,0.00012999,2]
[346553560,1735080649859,-151.0,0.00012999,2]
[346553561,1735080649869,-500.0,0.00012999,2]
[346553562,1735080649878,-500.0,0.00012999,2]
[346553563,1735080649887,-151.0,0.00012999,2]
[346553564,1735080649896,-500.0,0.00012999,2]
[346553565,1735080649905,-500.0,0.00012999,2]
[346553566,1735080649914,-500.0,0.00012999,2]
[346553567,1735080649923,-500.0,0.00012999,2]
[346553568,1735080649932,-500.0,0.00012999,2]
[346553569,1735080649941,-500.0,0.00012999,2]
[346553570,1735080649950,-500.0,0.00012999,2]
[346553571,1735080649960,-2787.45,0.00012999,2]
[346553572,1735080649969,-1498.31,0.00012999,2]
[346553573,1735080649979,-500.0,0.00012999,2]
[346553574,1735080649988,-500.0,0.00012999,2]
[346553575,1735080649998,-500.0,0.00012999,2]
[346553576,1735080650007,-500.0,0.00012999,2]
[346553577,1735080650016,-151.0,0.00012999,2]
[346553578,1735080650026,-500.0,0.00012999,2]
[346553579,1735080650035,-500.0,0.00012999,2]
[346553580,1735080650044,-500.0,0.00012999,2]
[346553581,1735080650053,-1364.95,0.00012999,2]
[346553582,1735080650062,-500.0,0.00012999,2]
[346553583,1735080650071,-702.32,0.00012999,2]
[346553584,1735080650080,-767.4,0.00012999,2]
[346553585,1735080650089,-500.0,0.00012999,2]
[346553586,1735080650099,-500.0,0.00012999,2]
[346553587,1735080650112,-177.19305,0.00012999,2]
[346553588,1735080650121,-151.0,0.00012999,2]
[346553589,1735080650130,-638.71,0.00012999,2]
[346553590,1735080650139,-19604.4,0.00012999,2]
[346553591,1735080650149,-700.78,0.00012999,2]
[346553592,1735080650158,-151.0,0.00012999,2]
[346553593,1735080650167,-151.0,0.00012999,2]
[346553594,1735080650176,-500.0,0.00012999,2]
[346553595,1735080650185,-504.25134105,0.00012999,2]
[346553596,1735080650195,-2366.87,0.00012999,2]
[346553597,1735080650204,-1073.74,0.00012999,2]
[346553598,1735080650213,-1773.99,0.00012999,2]
[346553599,1735080650222,-1636.62,0.00012999,2]
[346553600,1735080650231,-500.0,0.00012999,2]
[346553601,1735080650240,-500.0,0.00012999,2]
[346553602,1735080650249,-1421.13,0.00012999,2]
[346553603,1735080650259,-500.0,0.00012999,2]
[346553604,1735080650268,-500.0,0.00012999,2]
[346553605,1735080650277,-500.0,0.00012999,2]
[346553606,1735080650286,-2766.83,0.00012999,2]
[346553607,1735080650295,-1327.39,0.00012999,2]
[346553608,1735080650305,-500.0,0.00012999,2]
[346553609,1735080650314,-3427.43,0.00012999,2]
[346553610,1735080650324,-545.64,0.00012999,2]
[346553611,1735080650334,-11333.32,0.00012999,2]
[346553612,1735080650343,-151.0,0.00012999,2]
[346553613,1735080650352,-500.0,0.00012999,2]
[346553614,1735080650526,-500.0,0.00012999,2]
[346553615,1735080650536,-500.0,0.00012999,2]
[346553616,1735080650546,-500.0,0.00012999,2]
[346553617,1735080650555,-500.0,0.00012999,2]
[346553618,1735080650564,-500.0,0.00012999,2]
[346553619,1735080650574,-500.0,0.00012999,2]
[346553620,1735080650583,-500.0,0.00012999,2]
[346553621,1735080650593,-1442.35,0.00012999,2]
[346553622,1735080650603,-500.0,0.00012999,2]
[346553623,1735080650612,-500.0,0.00012999,2]
[346553624,1735080650622,-500.0,0.00012999,2]
[346553625,1735080650631,-500.0,0.00012999,2]
[346553626,1735080650641,-500.0,0.00012999,2]
[346553627,1735080650650,-4912.98,0.00012999,2]
[346553628,1735080650659,-1908.07,0.00012999,2]
[346553629,1735080650669,-500.0,0.00012999,2]
[346553630,1735080650679,-834.53,0.00012999,2]
[346553631,1735080650689,-500.0,0.00012999,2]
[346553632,1735080650699,-1070.21,0.00012999,2]
[346553633,1735080650709,-501.41906951,0.00012999,2]
[346553634,1735080650719,-500.0,0.00012999,2]
[346553635,1735080650728,-1037.02,0.00012999,2]
[346553636,1735080650737,-500.0,0.00012999,2]
[346553637,1735080650747,-500.0,0.00012999,2]
[346553638,1735080650756,-2835.63,0.00012999,2]
[346553639,1735080650765,-523.51912343,0.00012999,2]
[346553640,1735080650775,-500.0,0.00012999,2]
[346553641,1735080650784,-500.43390348,0.00012999,2]
[346553642,1735080650793,-500.0,0.00012999,2]
[346553643,1735080650803,-500.0,0.00012999,2]
[346553644,1735080650812,-1735.5,0.00012999,2]
[346553645,1735080650822,-500.0,0.00012999,2]
[346553646,1735080650831,-3210.9,0.00012999,2]
[346553647,1735080650840,-500.0,0.00012999,2]
[346553648,1735080650849,-500.0,0.00012999,2]
[346553649,1735080650860,-690.59,0.00012999,2]
[346553650,1735080650870,-500.90323787,0.00012999,2]
[346553651,1735080650879,-500.0,0.00012999,2]
[346553652,1735080650888,-11551.49,0.00012999,2]
[346553653,1735080650898,-510.74,0.00012999,2]
[346553654,1735080650907,-500.0,0.00012999,2]
[346553655,1735080650917,-500.0,0.00012999,2]
[346553656,1735080650927,-500.0,0.00012999,2]
[346553657,1735080650936,-584.37,0.00012999,2]
[346553658,1735080650946,-644.13,0.00012999,2]
[346553659,1735080650955,-500.0,0.00012999,2]
[346553660,1735080650965,-4054.48,0.00012999,2]
[346553661,1735080650975,-500.0,0.00012999,2]
[346553662,1735080650984,-500.0,0.00012999,2]
[346553663,1735080650994,-2132.35,0.00012999,2]
[346553664,1735080651003,-500.0,0.00012999,2]
[346553665,1735080651013,-500.0,0.00012999,2]
[346553666,1735080651022,-500.3241608,0.00012999,2]
[346553667,1735080651032,-500.0,0.00012999,2]
[346553668,1735080651042,-500.0,0.00012999,2]
[346553669,1735080651051,-500.0,0.00012999,2]
[346553670,1735080651060,-500.0,0.00012999,2]
[346553671,1735080651070,-501.05788633,0.00012999,2]
[346553672,1735080651080,-500.0,0.00012999,2]
[346553673,1735080651089,-603.43,0.00012999,2]
[346553674,1735080651099,-500.0,0.00012999,2]
[346553675,1735080651112,-2696.67,0.00012999,2]
[346553676,1735080651121,-500.0,0.00012999,2]
[346553677,1735080651131,-500.0,0.00012999,2]
[346553678,1735080651140,-500.0,0.00012999,2]
[346553679,1735080651150,-500.0,0.00012999,2]
[346553680,1735080651159,-391.9904688,0.00012999,2]
[346553681,1735080651168,-2393.44,0.00012999,2]
[346553682,1735080651178,-1055.64,0.00012999,2]
[346553683,1735080651187,-151.0,0.00012999,2]
[346553684,1735080651197,-151.0,0.00012999,2]
[346553685,1735080651207,-500.0,0.00012999,2]
[346553686,1735080651216,-501.37297597,0.00012999,2]
[346553687,1735080651225,-500.0,0.00012999,2]
[346553688,1735080651235,-500.0,0.00012999,2]
[346553689,1735080651244,-151.0,0.00012999,2]
[346553690,1735080651254,-153.684607,0.00012999,2]
[346553691,1735080651263,-1347.05,0.00012999,2]
[346553692,1735080651273,-938.98,0.00012999,2]
[346553693,1735080651282,-502.62301875,0.00012999,2]
[346553694,1735080651291,-1699.96,0.00012999,2]
[346553695,1735080651301,-500.0,0.00012999,2]
[346553696,1735080651310,-151.0,0.00012999,2]
[346553697,1735080651319,-2542.54,0.00012999,2]
[346553698,1735080651328,-9843.77,0.00012999,2]
[346553699,1735080651337,-500.0,0.00012999,2]
[346553700,1735080651346,-500.0,0.00012999,2]
[346553701,1735080651356,-500.0,0.00012999,2]
[346553702,1735080651365,-151.0,0.00012999,2]
[346553703,1735080651375,-1813.25,0.00012999,2]
[346553704,1735080651384,-2637.51,0.00012999,2]
[346553705,1735080651394,-726.08,0.00012999,2]
[346553706,1735080651403,-500.0,0.00012999,2]
[346553707,1735080651412,-5857.02,0.00012999,2]
[346553708,1735080651422,-1446.41,0.00012999,2]
[346553709,1735080651431,-500.0,0.00012999,2]
[346553710,1735080651440,-2894.56,0.00012999,2]
[346553711,1735080651449,-500.0,0.00012999,2]
[346553712,1735080651459,-500.0,0.00012999,2]
[346553713,1735080651468,-500.25632084,0.00012999,2]
[346553714,1735080651478,-500.0,0.00012999,2]
[346553715,1735080651487,-500.28778676,0.00012999,2]
[346553716,1735080651496,-3213.33,0.00012999,2]
[346553717,1735080651506,-500.0,0.00012999,2]
[346553718,1735080651515,-500.0,0.00012999,2]
[346553719,1735080651525,-500.0,0.00012999,2]
[346553720,1735080651535,-2035.4,0.00012999,2]
[346553721,1735080651544,-372.37550184,0.00012999,2]
[346553722,1735080651554,-939.53,0.00012999,2]
[346553723,1735080651563,-500.0,0.00012999,2]
[346553724,1735080651572,-500.0,0.00012999,2]
[346553725,1735080651581,-1272.91,0.00012999,2]
[346553726,1735080651591,-500.0,0.00012999,2]
[346553727,1735080651601,-817.86,0.00012999,2]
[346553728,1735080651610,-12065.1,0.00012999,2]
[346553729,1735080651619,-12065.1,0.00012999,2]
[346553730,1735080651628,-3808.69,0.00012999,2]
[346553731,1735080651637,-12065.1,0.00012999,2]
[346553732,1735080651647,-500.0,0.00012999,2]
[346553733,1735080651656,-1605.22,0.00012999,2]
[346553734,1735080651665,-12065.1,0.00012999,2]
[346553735,1735080651675,-12065.1,0.00012999,2]
[346553736,1735080651685,-8025.19918367,0.00012999,2]
[346553740,1735080825369,18912.87501136,0.00012,30]
[346553741,1735080825398,4277.72199585,0.00012,30]
[346553742,1735080903671,154.0,0.00012,30]
[346553743,1735081202956,155.44500098,0.00012,30]
[346553749,1735081693964,202.2,9.269e-05,2]
[346553752,1735081831837,-989.31,9.863e-05,2]
[346553753,1735081831847,-212.18,0.00010137,2]
[346553754,1735081831857,-544.52,0.0001158,2]
[346553755,1735081831866,-38.57000001,0.00011676,2]
[346553756,1735081831877,-379.99999,0.00011676,2]
[346553757,1735081831890,-1581.43000999,0.00011676,2]
[346553758,1735081831900,-400.0,0.00011708,2]
[346553759,1735081831910,-250.0,0.00011748,2]
[346553760,1735081831919,-165.49,0.00011826,2]
[346553761,1735081831928,-250.0,0.00011871,2]
[346553762,1735081831937,-2848.2356,0.000119,2]
[346553763,1735081831947,-6778.5253,0.000119,2]
[346553764,1735081831956,-250.0,0.00011929,2]
[346553765,1735081831966,-23900.0,0.0001193,2]
[346553766,1735081831975,-856.83,0.00011974,2]
[346553767,1735081831986,-363.32062561,0.00011999,2]
[346553768,1735081831997,-1076.67,0.00012,2]
[346553769,1735081832007,-12581.4984644,0.00012,2]
[346553770,1735081832067,-1057.7,0.00012,2]
[346553771,1735081832079,-2100.0,0.00012,2]
[346553772,1735081832091,-72210.8015356,0.00012,2]
[346553773,1735081832101,-451.89,0.00012012,2]
[346553774,1735081832110,-989.31,0.00012127,2]
[346553775,1735081832120,-477.203,0.0001235,2]
[346553776,1735081832131,-3897.0,0.00012608,2]
[346553777,1735081832141,-150.0,0.00012627,2]
[346553778,1735081832150,-1101.0,0.00012627,2]
[346553779,1735081832160,-410.3919574,0.00012743,2]
[346553780,1735081832170,-3000.0,0.0001287,2]
[346553781,1735081832180,-1338.85449683,0.00012892,2]
[346553782,1735081832190,-1267.9896,0.00012893,2]
[346553784,1735081832200,-2500.0,0.00012893,2]
[346553786,1735081832209,-1338.85449682,0.00012893,2]
[346553788,1735081832219,-1338.85449682,0.00012894,2]
[346553790,1735081832229,-5000.0,0.00012894,2]
[346553791,1735081832238,-1338.85449682,0.00012895,2]
[346553792,1735081832248,-2000.0,0.00012895,2]
[346553793,1735081832258,-200.0,0.00012895,2]
[346553794,1735081832268,-1338.85449682,0.00012896,2]
[346553795,1735081832278,-1338.85449682,0.00012896,2]
[346553796,1735081832288,-1338.85449682,0.00012897,2]
[346553797,1735081832298,-164.30406952,0.00012899,2]
[346553798,1735081832308,-169.623,0.00012899,2]
[346553799,1735081832317,-1391.547,0.00012899,2]
[346553800,1735081832327,-500.0,0.00012992,2]
[346553802,1735081832336,-4180.95,0.00012992,2]
[346553804,1735081832346,-3868.52,0.00012992,2]
[346553806,1735081832355,-500.0,0.00012992,2]
[346553807,1735081832365,-9742.85,0.00012992,2]
[346553809,1735081832375,-2870.73,0.00012992,2]
[346553810,1735081832384,-6454.13,0.00012992,2]
[346553811,1735081832394,-1671.53,0.00012992,2]
[346553812,1735081832404,-561.17,0.00012992,2]
[346553813,1735081832414,-30165.55,0.00012992,2]
[346553814,1735081832424,-6295.97,0.00012992,2]
[346553815,1735081832434,-9925.12,0.00012992,2]
[346553816,1735081832443,-5521.14,0.00012992,2]
[346553817,1735081832453,-17044.22,0.00012992,2]
[346553818,1735081832463,-4257.62,0.00012992,2]
[346553819,1735081832472,-6260.18,0.00012992,2]
[346553820,1735081832484,-5455.49,0.00012992,2]
[346553821,1735081832494,-9348.89,0.00012992,2]
[346553822,1735081832504,-1503.85,0.00012992,2]
[346553823,1735081832513,-6808.37,0.00012992,2]
[346553824,1735081832523,-3317.38,0.00012992,2]
[346553825,1735081832533,-4038.84,0.00012992,2]
[346553826,1735081832542,-1137.4,0.00012992,2]
[346553827,1735081832552,-3738.37,0.00012992,2]
[346553828,1735081832561,-1324.14,0.00012992,2]
[346553829,1735081832571,-500.0,0.00012992,2]
[346553830,1735081832580,-371.98889828,0.00012992,2]
[346553831,1735081832590,-500.0,0.00012992,2]
[346553832,1735081832599,-500.0,0.00012992,2]
[346553833,1735081832609,-500.0,0.00012992,2]
[346553834,1735081832618,-500.05272744,0.00012992,2]
[346553835,1735081832628,-500.0,0.00012992,2]
[346553836,1735081832638,-269.24553206,0.00012992,2]
[346553837,1735081832647,-500.0,0.00012993,2]
[346553838,1735081832656,-154.669237,0.00012993,2]
[346553839,1735081832666,-154.936045,0.00012993,2]
[346553840,1735081832675,-3103.409919,0.00012993,2]
[346553841,1735081832684,-3261.088806,0.00012993,2]
[346553842,1735081832694,-11460.85,0.00012993,2]
[346553843,1735081832703,-500.0,0.00012993,2]
[346553844,1735081832713,-5700.89,0.00012993,2]
[346553845,1735081832724,-2212.41,0.00012993,2]
[346553846,1735081832737,-500.0,0.00012993,2]
[346553847,1735081832747,-1095.81,0.00012993,2]
[346553848,1735081832757,-500.0,0.00012993,2]
[346553849,1735081832769,-4022.08,0.00012993,2]
[346553850,1735081832778,-1958.02,0.00012993,2]
[346553851,1735081832788,-1841.12,0.00012993,2]
[346553852,1735081832797,-5771.47,0.00012993,2]
[346553853,1735081832809,-2644.73,0.00012993,2]
[346553854,1735081832819,-2791.53,0.00012993,2]
[346553855,1735081832842,-5588.1,0.00012993,2]
[346553856,1735081832852,-10667.46,0.00012993,2]
[346553857,1735081832861,-5316.86,0.00012993,2]
[346553858,1735081832870,-500.0,0.00012993,2]
[346553859,1735081832879,-8562.94,0.00012993,2]
[346553860,1735081832888,-500.0,0.00012993,2]
[346553861,1735081832898,-33589.12,0.00012993,2]
[346553862,1735081832907,-2850.39,0.00012993,2]
[346553863,1735081832916,-500.0,0.00012993,2]
[346553864,1735081833123,-5164.11,0.00012993,2]
[346553865,1735081833134,-37959.74,0.00012993,2]
[346553866,1735081833145,-6609.28,0.00012993,2]
[346553867,1735081833155,-2445.16,0.00012993,2]
[346553868,1735081833165,-3946.4,0.00012993,2]
[346553869,1735081833175,-3927.21,0.00012993,2]
[346553870,1735081833185,-4540.61,0.00012993,2]
[346553871,1735081833195,-12208.26,0.00012993,2]
[346553872,1735081833205,-9554.36,0.00012993,2]
[346553873,1735081833214,-5955.17,0.00012993,2]
[346553874,1735081833224,-27879.09,0.00012993,2]
[346553875,1735081833234,-5827.05,0.00012993,2]
[346553876,1735081833243,-4363.64,0.00012993,2]
[346553877,1735081833253,-4363.64,0.00012993,2]
[346553878,1735081833262,-17424.53,0.00012993,2]
[346553879,1735081833272,-11766.83,0.00012993,2]
[346553880,1735081833282,-2229.07,0.00012993,2]
[346553881,1735081833292,-14251.32,0.00012993,2]
[346553882,1735081833302,-6339.46,0.00012993,2]
[346553883,1735081833310,-500.0,0.00012994,2]
[346553884,1735081833319,-500.0,0.00012994,2]
[346553885,1735081833327,-828.93,0.00012994,2]
[346553886,1735081833337,-500.0,0.00012994,2]
[346553887,1735081833346,-918.46,0.00012994,2]
[346553888,1735081833355,-500.0,0.00012994,2]
[346553889,1735081833365,-500.0,0.00012994,2]
[346553890,1735081833374,-500.0,0.00012994,2]
[346553891,1735081833385,-1529.07,0.00012994,2]
[346553892,1735081833395,-503.09635707,0.00012994,2]
[346553893,1735081833405,-1480.58,0.00012994,2]
[346553894,1735081833415,-1404.6,0.00012994,2]
[346553895,1735081833425,-500.0,0.00012994,2]
[346553896,1735081833435,-507.20119856,0.00012994,2]
[346553897,1735081833444,-500.0,0.00012994,2]
[346553898,1735081833454,-500.0,0.00012994,2]
[346553899,1735081833463,-545.21,0.00012994,2]
[346553900,1735081833473,-500.0,0.00012994,2]
[346553901,1735081833483,-500.0,0.00012994,2]
[346553902,1735081833493,-500.0,0.00012994,2]
[346553903,1735081833503,-500.0,0.00012994,2]
[346553904,1735081833512,-500.0,0.00012994,2]
[346553905,1735081833522,-500.0,0.00012994,2]
[346553906,1735081833531,-500.0,0.00012994,2]
[346553907,1735081833541,-500.0,0.00012994,2]
[346553908,1735081833551,-500.0,0.00012994,2]
[346553909,1735081833560,-500.0,0.00012994,2]
[346553910,1735081833570,-763.74,0.00012994,2]
[346553911,1735081833579,-937.1,0.00012994,2]
[346553912,1735081833589,-774.27,0.00012994,2]
[346553913,1735081833598,-500.0,0.00012994,2]
[346553914,1735081833608,-500.0,0.00012994,2]
[346553915,1735081833617,-500.0,0.00012994,2]
[346553916,1735081833627,-1083.8,0.00012994,2]
[346553917,1735081833636,-500.0,0.00012994,2]
[346553918,1735081833645,-1465.86,0.00012994,2]
[346553919,1735081833654,-501.55106925,0.00012994,2]
[346553920,1735081833663,-962.46,0.00012994,2]
[346553921,1735081833673,-504.01530955,0.00012994,2]
[346553922,1735081833681,-500.0,0.00012994,2]
[346553923,1735081833690,-500.0,0.00012994,2]
[346553924,1735081833700,-500.0,0.00012994,2]
[346553925,1735081833709,-500.0,0.00012994,2]
[346553926,1735081833720,-505.44933643,0.00012994,2]
[346553927,1735081833732,-989.47,0.00012994,2]
[346553928,1735081833742,-500.0,0.00012994,2]
[346553929,1735081833751,-500.0,0.00012994,2]
[346553930,1735081833761,-500.0,0.00012994,2]
[346553931,1735081833770,-500.0,0.00012994,2]
[346553932,1735081833780,-619.45,0.00012994,2]
[346553933,1735081833790,-500.0,0.00012994,2]
[346553934,1735081833801,-500.0,0.00012994,2]
[346553935,1735081833811,-500.0,0.00012994,2]
[346553936,1735081833820,-500.0,0.00012994,2]
[346553937,1735081833835,-1221.74,0.00012994,2]
[346553938,1735081833844,-500.0,0.00012994,2]
[346553939,1735081833854,-500.0,0.00012994,2]
[346553940,1735081833869,-500.0,0.00012994,2]
[346553941,1735081833879,-539.75,0.00012994,2]
[346553942,1735081833888,-500.0,0.00012994,2]
[346553943,1735081833898,-500.0,0.00012994,2]
[346553944,1735081833907,-500.0,0.00012994,2]
[346553945,1735081833917,-500.0,0.00012994,2]
[346553946,1735081833927,-2967.06,0.00012994,2]
[346553947,1735081833937,-501.11548456,0.00012994,2]
[346553948,1735081833947,-500.0,0.00012994,2]
[346553949,1735081833956,-500.0,0.00012994,2]
[346553950,1735081833966,-500.0,0.00012994,2]
[346553951,1735081833975,-1013.08,0.00012994,2]
[346553952,1735081833985,-500.0,0.00012994,2]
[346553953,1735081833995,-500.0,0.00012994,2]
[346553954,1735081834004,-500.0,0.00012994,2]
[346553955,1735081834014,-500.0,0.00012994,2]
[346553956,1735081834023,-259.54051424,0.00012994,2]
[346553957,1735081834033,-2310.06,0.00012994,2]
[346553958,1735081834043,-500.0,0.00012994,2]
[346553959,1735081834052,-500.0,0.00012994,2]
[346553960,1735081834061,-500.0,0.00012994,2]
[346553961,1735081834071,-500.0,0.00012994,2]
[346553962,1735081834081,-1223.76,0.00012994,2]
[346553963,1735081834091,-500.0,0.00012994,2]
[346553964,1735081834100,-1337.42,0.00012994,2]
[346553965,1735081834111,-500.0,0.00012994,2]
[346553966,1735081834121,-1117.64,0.00012994,2]
[346553967,1735081834130,-500.0,0.00012994,2]
[346553968,1735081834150,-500.0,0.00012994,2]
[346553969,1735081834168,-500.0,0.00012994,2]
[346553970,1735081834187,-518.60553237,0.00012994,2]
[346553971,1735081834209,-1254.48,0.00012994,2]
[346553972,1735081834225,-500.0,0.00012994,2]
[346553973,1735081834242,-500.0,0.00012994,2]
[346553974,1735081834263,-500.0,0.00012994,2]
[346553975,1735081834283,-500.0,0.00012994,2]
[346553976,1735081834302,-501.65805797,0.00012994,2]
[346553977,1735081834320,-902.98,0.00012994,2]
[346553978,1735081834341,-775.74,0.00012994,2]
[346553979,1735081834359,-500.0,0.00012994,2]
[346553980,1735081834374,-500.0,0.00012994,2]
[346553981,1735081834400,-500.0,0.00012994,2]
[346553982,1735081834416,-500.0,0.00012994,2]
[346553983,1735081834433,-907.14,0.00012994,2]
[346553984,1735081834447,-500.0,0.00012994,2]
[346553985,1735081834462,-501.27188524,0.00012994,2]
[346553986,1735081834476,-500.0,0.00012994,2]
[346553987,1735081834497,-500.0,0.00012994,2]
[346553988,1735081834512,-711.84,0.00012994,2]
[346553989,1735081834527,-500.0,0.00012994,2]
[346553990,1735081834542,-978.24,0.00012994,2]
[346553991,1735081834558,-500.0,0.00012994,2]
[346553992,1735081834573,-739.23,0.00012994,2]
[346553993,1735081834589,-649.15,0.00012994,2]
[346553994,1735081834604,-500.0,0.00012994,2]
[346553995,1735081834619,-1303.18,0.00012994,2]
[346553996,1735081834633,-500.0,0.00012994,2]
[346553997,1735081834648,-500.0,0.00012994,2]
[346553998,1735081834662,-500.0,0.00012994,2]
[346553999,1735081834677,-500.0,0.00012994,2]
[346554000,1735081834693,-500.0,0.00012994,2]
[346554001,1735081834708,-500.0,0.00012994,2]
[346554002,1735081834724,-500.0,0.00012994,2]
[346554003,1735081834740,-2104.08,0.00012994,2]
[346554004,1735081834755,-688.37,0.00012994,2]
[346554005,1735081834769,-500.0,0.00012994,2]
[346554006,1735081834784,-500.0,0.00012994,2]
[346554007,1735081834799,-500.0,0.00012994,2]
[346554008,1735081834813,-500.0,0.00012994,2]
[346554009,1735081834827,-500.0,0.00012994,2]
[346554010,1735081834843,-500.0,0.00012994,2]
[346554011,1735081834856,-500.0,0.00012994,2]
[346554012,1735081834870,-2050.16,0.00012994,2]
[346554013,1735081834886,-500.0,0.00012994,2]
[346554014,1735081834901,-500.0,0.00012994,2]
[346554015,1735081834915,-500.0,0.00012994,2]